[Event "Hungarian U20 Junior-ch Men 2024"]
[Site "Budapest"]
[Date "2024.03.13"]
[Round "3.5"]
[White "Tancsa, Tamas"]
[Black "Pasti, Aron"]
[Result "0-1"]
[ECO "B12"]
[WhiteElo "2273"]
[BlackElo "2373"]
[Annotator "TA"]
[PlyCount "66"]
[EventDate "2024.03.10"]
[EventCountry "HUN"]
[SourceTitle "playchess.com"]
[Source "ChessBase"]
[SourceQuality "1"]
[TimeControl "40/5400+30:1800+30"]

{[%evp 9,66,6,7,12,30,24,35,22,33,19,36,0,10,0,0,0,0,0,0,0,0,0,5,3,9,0,0,0,0,0,0,-52,-20,-85,-7,-142,-131,-141,-131,-148,-70,-140,-120,-149,-168,-443,-405,-544,-392,-691,-681,-709,-403,-462,-440,-461,-452,-666,-671]} 1. e4 {[%emt 0:00:49]} c6 {[%emt 0:00:48]} 2. d4 {[%emt 0:00:51]} d5 {[%emt 0:01:51]} 3. e5 {[%emt 0:01:05]} c5 {[%emt 0:00:19]} 4. dxc5 {[%emt 0:00:06]} e6 {[%emt 0:00:11]} 5. a3 {[%emt 0:00:12]} Bxc5 {[%emt 0:00:05]} 6. Nf3 {[%emt 0:01:10]} Nd7 {[%emt 0:00:08]} 7. Bd3 {[%emt 0:02:31]} f6 {[%emt 0:00:50]} 8. b4 {[%emt 0:02:06] White is slightly better.} Be7 {[%emt 0:01:15]} 9. Bb2 {[%emt 0:04:51]} a5 {[%emt 0:01:11]} 10. b5 {[%emt 0:11:56]} Nh6 {[%emt 0:02:25]} 11. Nbd2 {[%emt 0:26:23]} Nf7 {[%emt 0:00:46]} 12. exf6 {[%emt 0:09:17]} Bxf6 {[%emt 0:01:15]} 13. Bxf6 {[%emt 0:01:24]} Qxf6 {[%emt 0:00:02]} 14. c4 $1 {[%emt 0:00:23]} Nc5 {[%emt 0:00:04]} 15. Bc2 {[%emt 0:01:23]} a4 {[%emt 0:00:10]} 16. O-O {[%emt 0:02:19]} b6 {[%emt 0:01:03]} 17. cxd5 {[%emt 0:02:42]} exd5 {[%emt 0:00:11]} 18. Re1+ {[%emt 0:00:01]} Be6 {[%emt 0:00:07] Active counter play!} 19. Nf1 {[%emt 0:00:04][%cal Od1d4]} O-O {[%emt 0:01:00]} 20. Ng3 {[%emt 0:01:11]} ({Better is} 20. Qd4 $11) 20... Nd6 {[%emt 0:10:06][%cal Og7g6]} 21. Nd4 {[%emt 0:05:38]} (21. Qd4 $11 {keeps the balance.}) 21... Bf7 {[%emt 0:04:28]} (21... Qxf2+ $17 22. Kh1 Bf7) 22. Ngf5 {[%emt 0:19:25]} (22. Re3 $11 {remains equal.}) 22... Nxf5 $17 {[%emt 0:05:34]} 23. Nxf5 {[%emt 0:00:24]} Be6 $1 {[%emt 0:02:53]} 24. Nd4 {[%emt 0:00:16]} Qxf2+ {[%emt 0:01:38]} 25. Kh1 {[%emt 0:00:08] [#]} Rae8 {[%emt 0:06:20][%cal Oe6g4] Hoping for ...Bg4!} 26. Qh5 {[%emt 0:06:22] [#]} h6 $40 {[%emt 0:00:39][%mdl 128] Black has strong attack.} (26... Qxd4 27. Bxh7+ Kh8 28. Bg6+ Kg8 29. Qh7#) 27. Qg6 {[%emt 0:00:32]} (27. Red1 Qe3 28. Nxe6 Qxe6 29. Kg1 Qe3+ 30. Kh1) 27... Qxd4 $19 {[%emt 0:02:32]} 28. Qh7+ {[%emt 0:00:29]} Kf7 {[%emt 0:00:01]} 29. Bg6+ $2 {[%emt 0:00:31]} (29. Rad1 Qc3 (29... Qf6 $2 30. Rf1 $18) 30. Bg6+ Ke7 31. Bxe8 Rxe8 (31... Kxe8 $2 32. Qg6+ Ke7 33. Rc1 $19) 32. Rc1) 29... Ke7 {[%emt 0:00:02]} 30. Bxe8 {[%emt 0:00:14]} Kxe8 {[%emt 0:01:53]} 31. Qg6+ {[%emt 0:00:44]} Kd7 {[%emt 0:00:20] White must now prevent ...Ne4. Black is clearly winning.} 32. Rad1 {[%emt 0:00:18]} Qf6 {[%emt 0:00:23]} 33. Qg3 {[%emt 0:00:02] [#]} (33. Qb1 $142) 33... Ne4 $1 {[%emt 0:00:07][%mdl 512] Weighted Error Value: White=0.64/Black=0.29 (precise) .  Mistake:       	White=6     	Black=1      Inaccurate:     	White=2     	Black=1      OK:         	White=8     	Black=10     Best:        	White=1     	Black=4      Strong:       	White=1     	Black=1} 0-1

[Event "Hungarian U20 Junior-ch Men 2024"]
[Site "Budapest"]
[Date "2024.03.14"]
[Round "4"]
[White "Juhasz, Agoston"]
[Black "Kolimar, Kristof Pal"]
[Result "1-0"]
[ECO "C11"]
[WhiteElo "2406"]
[BlackElo "2282"]
[Annotator "TA"]
[PlyCount "101"]
[EventDate "2024.03.10"]
[EventCountry "HUN"]
[SourceTitle "playchess.com"]
[Source "ChessBase"]
[SourceQuality "1"]
[TimeControl "40/5400+30:1800+30"]

{[%evp 14,101,17,23,9,0,0,7,31,9,31,22,27,20,67,58,78,77,68,68,104,88,163,95,96,94,79,34,68,41,107,83,83,91,76,84,150,118,116,111,104,108,120,110,102,109,95,100,100,106,124,115,122,120,120,122,122,116,349,364,372,366,349,372,354,354,384,359,332,199,284,284,504,476,548,554,545,531,546,547,1113,1066,999,988,12163,5509,29969,29971,29967,29953]} 1. e4 {[%emt 0:00:36]} e6 {[%emt 0:00:39]} 2. d4 {[%emt 0:00:28]} d5 {[%emt 0:00:04]} 3. Nc3 {[%emt 0:02:11]} Nf6 {[%emt 0:00:10]} 4. Bg5 {[%emt 0:00:47]} dxe4 {[%emt 0:00:09]} 5. Nxe4 {[%emt 0:00:21]} Be7 {[%emt 0:00:14]} 6. Bxf6 {[%emt 0:00:41]} gxf6 {[%emt 0:00:11]} 7. Nf3 {[%emt 0:00:21]} f5 {[%emt 0:00:38]} 8. Nc3 {[%emt 0:00:24]} a6 {[%emt 0:00:13]} 9. a4 {[%emt 0:00:59]} Nc6 {[%emt 0:04:35]} 10. Qd2 {[%emt 0:05:25]} Qd6 {[%emt 0:17:02] The position is equal.} 11. Qe3 {[%emt 0:14:49]} Nb4 {[%emt 0:08:52]} 12. O-O-O {[%emt 0:05:39]} Bd7 {[%emt 0:07:10]} 13. Ne5 {[%emt 0:02:36]} Rg8 {[%emt 0:11:12]} (13... Rf8 $11 {was preferrable.}) 14. Be2 $14 {[%emt 0:13:27]} Bc6 {[%emt 0:12:29]} 15. Bh5 {[%emt 0:11:22]} Rg7 {[%emt 0:00:19]} 16. Kb1 {[%emt 0:08:14]} Kf8 {[%emt 0:12:39]} 17. Rhg1 {[%emt 0:03:17]} f6 {[%emt 0:03:52]} (17... Rd8 $16) 18. Nc4 {[%emt 0:11:30]} ({White should play} 18. Nxc6 $18 bxc6 19. g3) 18... Nd5 $16 {[%emt 0:01:29]} 19. Nxd5 {[%emt 0:02:55]} Qxd5 {[%emt 0:00:04]} 20. Qe2 {[%emt 0:01:40]} Qd7 {[%emt 0:06:09][%cal Ob7b5]} 21. Bf3 {[%emt 0:01:58]} (21. g4 {feels hotter.} b5 22. Na5 Bd5 23. gxf5 exf5 24. Bf3) 21... b5 {[%emt 0:01:38]} (21... Bxa4 $14 22. g4 f4) 22. Ne3 {[%emt 0:01:12][%cal Bc4e3,Be3g2,Bg2f4,Bf4h5][%mdl 32] Strongly threatening Bxc6.} Bxf3 {[%emt 0:00:29]} 23. Qxf3 {[%emt 0:02:34]} c6 {[%emt 0:00:04]} 24. g4 {[%emt 0:00:37]} f4 {[%emt 0:02:11]} (24... fxg4 $142 25. Rxg4 (25. Nxg4 Qd5 $14) 25... Rxg4 26. Qxg4 (26. Nxg4 Qd5 $16) 26... f5) 25. Ng2 {[%emt 0:01:09]} Qd5 {[%emt 0:06:18]} 26. Qxd5 {[%emt 0:01:37]} exd5 {[%emt 0:00:03]} 27. Nxf4 {[%emt 0:00:07]} Kf7 {[%emt 0:00:24] Inhibits Ne6.} 28. axb5 {[%emt 0:01:23]} axb5 {[%emt 0:00:01]} 29. c3 {[%emt 0:00:44]} Bd6 {[%emt 0:01:25]} 30. Nh5 {[%emt 0:00:36]} Rgg8 {[%emt 0:00:53]} 31. h3 {[%emt 0:00:18]} Rae8 {[%emt 0:00:28]} 32. Rde1 {[%emt 0:02:03] Repels Re2} Rxe1+ {[%emt 0:00:25]} 33. Rxe1 {[%emt 0:00:03][%mdl 4096] Endgame. KRB-KRN} f5 {[%emt 0:00:13]} 34. f3 {[%emt 0:01:08]} f4 {[%emt 0:00:41]} 35. Kc2 {[%emt 0:00:47] Threatens to win with Ra1.} h6 $2 {[%emt 0:00:37] This costs Black the game.} (35... Ra8 $16 36. Kb3 h6) 36. Ra1 $18 {[%emt 0:01:35]} Re8 {[%emt 0:03:30]} 37. Ra6 {[%emt 0:01:53]} Re2+ {[%emt 0:00:41]} 38. Kb3 {[%emt 0:01:27]} Rf2 {[%emt 0:00:16]} 39. Rxc6 {[%emt 0:00:13]} Ke7 {[%emt 0:00:01] [#]} 40. Nf6 $1 {[%emt 0:00:00][%mdl 512]} Rxf3 {[%emt 0:00:00] [#]} 41. Ne8 {[%emt 0:12:53]} (41. Nxd5+ $142 $1 {[%mdl 512]} Ke6 (41... Kd7 42. Rb6) 42. Nb6 Rxh3 43. Nc8) 41... Bb8 {[%emt 0:11:13] [#]} (41... Kxe8 {was necessary.} 42. Rxd6 Rxh3) 42. Rxh6 $1 {[%emt 0:02:57]} Rg3 $2 {[%emt 0:01:57]} (42... Kxe8 43. Rh8+ Kf7) 43. Ng7 {[%emt 0:02:39]} Rg1 {[%emt 0:04:23]} 44. Nf5+ {[%emt 0:00:50]} Kd7 {[%emt 0:00:50]} 45. Rh7+ {[%emt 0:00:52]} Kc6 {[%emt 0:00:23]} 46. Rf7 {[%emt 0:01:19]} Rh1 {[%emt 0:01:39]} 47. g5 {[%emt 0:01:20]} f3 {[%emt 0:01:10]} 48. g6 {[%emt 0:00:44]} f2 {[%emt 0:00:22]} 49. g7 {[%emt 0:01:08]} (49. Ne7+ $142 Kb6 50. g7 (50. Rxf2 Rg1 $18) (50. Nxd5+ Ka6 $18)) 49... f1=Q {[%emt 0:00:44]} 50. Ne7+ {[%emt 0:00:07]} (50. g8=R $2 Qd1+ 51. Kb4 Qa4#) 50... Kd6 {[%emt 0:00:04]} 51. Rxf1 {[%emt 0:00:10] Weighted Error Value: White=0.14 (very precise) /Black=0.31.  Loses game:     	---       	Black=1      Mistake:       	White=2     	Black=6      Inaccurate:     	White=2     	Black=3      OK:         	White=19    	Black=10     Best:        	White=4     	Black=2      Strong:       	White=1     	---} (51. g8=R $2 {gets mated.} Qd1+ 52. Kb4 Qa4#) 1-0

[Event "Hungarian U20 Junior-ch Men 2024"]
[Site "Budapest"]
[Date "2024.03.14"]
[Round "4"]
[White "Pasztor, Balazs"]
[Black "Bodrogi, Bendeguz"]
[Result "1/2-1/2"]
[ECO "B12"]
[WhiteElo "2406"]
[BlackElo "2316"]
[Annotator "TA"]
[PlyCount "95"]
[EventDate "2024.03.10"]
[EventCountry "HUN"]
[SourceTitle "playchess.com"]
[Source "ChessBase"]
[SourceQuality "1"]
[TimeControl "40/5400+30:1800+30"]

{[%evp 9,95,16,9,6,9,10,16,9,16,6,7,0,0,0,0,0,21,27,20,35,36,22,41,27,35,42,36,47,27,42,42,44,39,33,48,27,52,39,57,37,45,27,18,11,20,20,18,0,0,0,0,0,0,0,0,0,0,0,0,0,0,0,0,0,0,0,0,0,0,0,0,0,0,0,0,0,0,0,0,0,0,0,0,0,0,0,0,0]} 1. e4 {[%emt 0:00:31]} c6 {[%emt 0:01:30]} 2. d4 {[%emt 0:00:04]} d5 {[%emt 0:00:08]} 3. e5 {[%emt 0:00:03]} Bf5 {[%emt 0:00:21]} 4. h4 {[%emt 0:00:05]} h5 {[%emt 0:00:19]} 5. Bd3 {[%emt 0:00:04]} Bxd3 {[%emt 0:00:48]} 6. Qxd3 {[%emt 0:00:04][%cal Oe5e6] Black must now prevent e6!} Qa5+ {[%emt 0:00:35]} 7. Nd2 {[%emt 0:00:06][%cal Oe5e6,Bb1d2,Bd2b3,Bb3c5][%mdl 32] And now e6! would win.} e6 {[%emt 0:00:49]} 8. Ngf3 {[%emt 0:00:04]} Nh6 {[%emt 0:04:42]} 9. O-O {[%emt 0:00:06]} Nf5 {[%emt 0:03:51]} 10. Nb3 {[%emt 0:00:12]} Qa6 {[%emt 0:07:17]} 11. Qd1 {[%emt 0:00:07]} Nd7 {[%emt 0:00:41][%cal Bb8d7,Bd7c5,Bc5d3][%mdl 32]} 12. Bg5 {[%emt 0:02:33]} c5 {[%emt 0:07:16]} 13. c3 {[%emt 0:02:07]} Rc8 {[%emt 0:01:24]} 14. dxc5 {[%emt 0:00:59]} Bxc5 {[%emt 0:04:06]} 15. Nxc5 {[%emt 0:04:09]} Nxc5 {[%emt 0:02:44]} 16. Nd4 {[%emt 0:04:21]} Qd3 {[%emt 0:34:50]} 17. Qxd3 {[%emt 0:22:15]} Nxd3 {[%emt 0:00:06]} 18. Nxf5 {[%emt 0:00:25]} exf5 {[%emt 0:00:06]} 19. Rab1 {[%emt 0:14:40]} O-O {[%emt 0:07:55]} 20. Rfd1 {[%emt 0:00:25]} Nxe5 {[%emt 0:00:10]} 21. Rxd5 {[%emt 0:00:21]} f6 {[%emt 0:00:14]} 22. Bf4 {[%emt 0:07:03]} Rfe8 {[%emt 0:01:40]} 23. Bxe5 {[%emt 0:02:31]} Rxe5 $14 {[%emt 0:01:17][%mdl 4096] Endgame. KRR-KRR} 24. Rbd1 {[%emt 0:00:12]} Rc7 {[%emt 0:04:59]} 25. g3 {[%emt 0:06:25]} Rce7 {[%emt 0:02:56]} 26. Kg2 {[%emt 0:01:48] The position is equal.} Kf7 {[%emt 0:01:09]} 27. Kf3 {[%emt 0:00:47]} g5 {[%emt 0:01:02]} 28. R1d4 {[%emt 0:02:02]} Rxd5 {[%emt 0:03:07]} 29. Rxd5 $11 {[%emt 0:00:08] KR-KR} Kg6 {[%emt 0:01:01]} 30. Rd4 {[%emt 0:01:34]} g4+ {[%emt 0:03:26]} 31. Kg2 $1 {[%emt 0:03:10]} Re2 {[%emt 0:00:10]} 32. Rb4 {[%emt 0:01:20]} b6 {[%emt 0:00:06]} 33. Kf1 {[%emt 0:01:33]} Rc2 {[%emt 0:01:06]} 34. Rb5 {[%emt 0:00:46]} Rc1+ {[%emt 0:00:52]} 35. Kg2 {[%emt 0:01:24]} Ra1 {[%emt 0:00:54]} 36. a3 {[%emt 0:00:27]} Rc1 {[%emt 0:00:19]} 37. a4 {[%emt 0:01:16]} Ra1 {[%emt 0:00:51]} 38. b3 {[%emt 0:00:59][%cal Bb2b3,Bb3b4][%mdl 32]} Rc1 {[%emt 0:00:24]} 39. c4 {[%emt 0:00:12]} Rb1 {[%emt 0:00:00]} 40. b4 {[%emt 0:00:00]} Rc1 {[%emt 0:00:00]} 41. c5 {[%emt 0:04:30]} bxc5 {[%emt 0:05:16]} 42. bxc5 {[%emt 0:00:07]} Rc4 {[%emt 0:03:09]} 43. Ra5 {[%emt 0:00:10]} Rc1 {[%emt 0:00:33]} 44. Rxa7 {[%emt 0:01:01]} Rxc5 {[%emt 0:00:09]} 45. Rb7 {[%emt 0:00:24]} Rc4 {[%emt 0:00:34]} 46. a5 {[%emt 0:00:09]} Ra4 {[%emt 0:02:05]} 47. Rb5 {[%emt 0:00:13]} f4 {[%emt 0:01:34]} 48. gxf4 {[%emt 0:00:53] Weighted Error Value: White=0.02 (flawless) /Black=0.03 (flawless) .  OK:         	White=20    	Black=20     Best:        	White=4     	Black=1      Strong:       	White=1     	---} 1/2-1/2

[Event "Hungarian U20 Junior-ch Men 2024"]
[Site "Budapest"]
[Date "2024.03.14"]
[Round "4"]
[White "Karacsonyi, Gellert"]
[Black "Pasti, Aron"]
[Result "1-0"]
[ECO "C55"]
[WhiteElo "2386"]
[BlackElo "2373"]
[Annotator "TA"]
[PlyCount "91"]
[EventDate "2024.03.10"]
[EventCountry "HUN"]
[SourceTitle "playchess.com"]
[Source "ChessBase"]
[SourceQuality "1"]
[TimeControl "40/5400+30:1800+30"]

{[%evp 10,91,42,23,28,29,43,27,29,24,17,-49,35,35,50,40,43,42,30,46,27,25,94,68,69,56,50,31,25,16,11,6,17,20,10,6,87,82,83,0,25,0,29,14,18,14,41,-96,0,0,35,22,216,215,206,210,203,203,177,84,356,345,455,509,203,512,458,495,525,513,514,428,423,437,776,765,4133,3020,2391,2159,2232,2243,1541,1533]} 1. e4 {[%emt 0:00:33]} e5 {[%emt 0:01:18]} 2. Nf3 {[%emt 0:00:09]} Nc6 {[%emt 0:00:03]} 3. Bc4 {[%emt 0:00:10]} Nf6 {[%emt 0:00:08]} 4. d3 {[%emt 0:00:07]} h6 {[%emt 0:00:05]} 5. O-O {[%emt 0:00:15]} d6 {[%emt 0:00:07]} 6. a4 {[%emt 0:00:28]} g5 {[%emt 0:02:10]} 7. Nc3 {[%emt 0:00:08]} Bg7 {[%emt 0:07:01]} 8. a5 {[%emt 0:05:30]} a6 {[%emt 0:05:25] White has an edge.} 9. Re1 {[%emt 0:02:15]} Bg4 {[%emt 0:11:46]} 10. Ne2 {[%emt 0:02:48] Wards off Nd4} (10. h3 $11 Bh5 11. Nd5) 10... d5 {[%emt 0:14:59]} (10... Bxf3 $1 $15 11. gxf3 Qd7) 11. exd5 $14 {[%emt 0:02:18]} Nxd5 {[%emt 0:00:10]} 12. Ng3 {[%emt 0:12:57][%cal Of3e5] Nxe5! is the strong threat.} Nd4 {[%emt 0:02:30]} 13. c3 {[%emt 0:00:31]} Nxf3+ {[%emt 0:14:01]} 14. gxf3 {[%emt 0:00:07]} Be6 {[%emt 0:00:07]} 15. Nh5 {[%emt 0:00:37]} Kf8 {[%emt 0:00:01]} (15... O-O $1 $11) 16. Qe2 {[%emt 0:18:51] White is more active.} (16. Qb3 {seems wilder.} b5 17. axb6 cxb6 18. Nxg7 Kxg7 19. Rxe5 Qf6 20. Rxd5 b5 21. Qd1) 16... Nf6 {[%emt 0:05:46]} 17. Bxe6 {[%emt 0:03:50]} (17. Qxe5 $2 Nxh5 18. Qc5+ Qe7 $19) 17... Nxh5 {[%emt 0:01:17]} 18. Bg4 {[%emt 0:10:11]} Nf4 {[%emt 0:15:40]} 19. Bxf4 {[%emt 0:00:06]} (19. Qe4 {looks sharper.} c6 20. Bxf4 gxf4 21. Kh1) 19... gxf4 {[%emt 0:00:01]} 20. Kh1 {[%emt 0:02:29]} c6 {[%emt 0:03:41]} 21. Ra4 {[%emt 0:07:03]} h5 {[%emt 0:07:02][%cal Bh6h5,Bh5h4][%mdl 32]} 22. Bf5 {[%emt 0:00:24]} Qf6 {[%emt 0:00:01] Black is weak on the light squares} (22... Rb8 $11 {keeps the balance.}) 23. Qe4 $16 {[%emt 0:02:26]} h4 {[%emt 0:04:52]} 24. Bh7 {[%emt 0:04:14]} (24. Qb4+ $16 Qe7 25. Qb6) 24... Re8 {[%emt 0:01:28]} 25. Rg1 {[%emt 0:08:43]} Re7 {[%emt 0:01:31]} 26. Raa1 {[%emt 0:00:45]} Qe6 {[%emt 0:01:28]} 27. Bf5 {[%emt 0:06:41]} Qd5 {[%emt 0:00:22]} 28. Qe2 {[%emt 0:02:45] [#]} (28. b4 $14 {keeps the upper hand.}) 28... Rh5 {[%emt 0:00:30]} (28... e4 $1 $17 {[%cal Re4f3]} 29. Bxe4 (29. dxe4 $2 Qxf5 30. Qd1 Qd7 $19) 29... Qh5) 29. Bh3 $11 {[%emt 0:01:02]} f5 {[%emt 0:00:52]} 30. Rg2 {[%emt 0:01:12]} e4 $2 {[%emt 0:00:35]} (30... Bh8 $11) 31. fxe4 {[%emt 0:00:54]} fxe4 {[%emt 0:00:03]} 32. dxe4 {[%emt 0:00:06]} Rxe4 {[%emt 0:00:36]} 33. Qg4 {[%emt 0:00:01]} Bf6 {[%emt 0:00:43][%cal Of4f3] [#] Hoping for ...f3!} 34. Qg6 {[%emt 0:03:59]} (34. f3 $1 $18 {[%cal Rf3e4] is more deadly.} Re7 35. Qxf4) 34... Qe5 {[%emt 0:00:33][%mdl 8192] [#]} (34... Ke7 $16) 35. Be6 $1 $18 {[%emt 0:01:11][%csl Ge6][%cal Rg6f7][%mdl 512]} Re1+ {[%emt 0:00:19]} (35... Qxe6 36. Qxh5) 36. Rxe1 {[%emt 0:00:01]} Qxe1+ {[%emt 0:00:01]} 37. Rg1 {[%emt 0:00:04]} Qxe6 {[%emt 0:00:24] White is clearly winning.} 38. Qxh5 {[%emt 0:00:01][%mdl 4096] Endgame. KQR-KQB} Qe4+ {[%emt 0:00:16]} 39. f3 {[%emt 0:00:00]} Qe3 {[%emt 0:00:00]} 40. Qh6+ {[%emt 0:00:00]} Ke7 {[%emt 0:00:00]} 41. Qh7+ {[%emt 0:01:22]} Kd6 {[%emt 0:00:36]} (41... Ke6 $142 42. Rf1 (42. Qxb7 $2 Qxf3+ 43. Rg2 Qd1+ 44. Rg1 Qd5+ 45. Rg2 f3 $19) 42... Qe2) 42. Rd1+ {[%emt 0:00:47]} (42. Qxb7 Qxf3+ 43. Rg2 Qd1+ 44. Rg1 Qf3+ 45. Rg2 h3 46. Qb8+ Ke6 47. Qc8+ Kd6 48. Qb8+ Kd5 49. Qg8+ Kc5 50. Qf8+ Kd5 51. Qf7+ Kc5 52. Qf8+ Kd5 53. Qf7+ Ke5 54. Qe8+ Kd6 55. Qb8+ $11) 42... Kc5 {[%emt 0:00:01]} 43. b4+ {[%emt 0:02:37]} (43. Qxb7 $2 {loses.} Qxf3+ 44. Kg1 Qxd1+ $19) 43... Kc4 {[%emt 0:02:30]} 44. Qf7+ {[%emt 0:01:58]} (44. Qxb7 $2 {too greedy.} Qxf3+ (44... Bxc3 $2 {perishes.} 45. Qxa6+ Kb3 46. Qxc6 $18) 45. Kg1 Qxd1+ $19) 44... Kxc3 {[%emt 0:00:05]} 45. Qxf6+ {[%emt 0:00:16]} Kc2 {[%emt 0:00:02]} 46. Rf1 {[%emt 0:00:12] Weighted Error Value: White=0.23 (precise) /Black=0.40.  Loses game:     	---       	Black=2      Mistake:       	White=4     	Black=5      Inaccurate:     	---       	Black=5      OK:         	White=9     	Black=10     Best:        	White=7     	---} 1-0

[Event "Hungarian U20 Junior-ch Men 2024"]
[Site "Budapest"]
[Date "2024.03.14"]
[Round "4"]
[White "Gombocz, Ferenc Jr."]
[Black "Tancsa, Tamas"]
[Result "1-0"]
[ECO "A36"]
[WhiteElo "2351"]
[BlackElo "2273"]
[Annotator "TA"]
[PlyCount "91"]
[EventDate "2024.03.10"]
[EventCountry "HUN"]
[SourceTitle "playchess.com"]
[Source "ChessBase"]
[SourceQuality "1"]
[TimeControl "40/5400+30:1800+30"]

{[%evp 9,91,16,9,10,10,11,9,6,12,-15,18,0,9,0,-8,0,0,0,0,-7,0,0,3,2,14,19,14,0,0,0,150,128,158,158,200,195,388,401,502,473,618,580,613,565,519,349,632,288,291,291,291,291,291,291,338,338,345,255,421,445,610,584,576,609,559,518,554,546,610,598,869,823,800,690,708,675,1018,1008,997,979,944,925,5410,4103]} 1. c4 {[%emt 0:00:40]} c5 {[%emt 0:00:33]} 2. g3 {[%emt 0:00:06]} g6 {[%emt 0:00:13]} 3. Bg2 {[%emt 0:00:06]} Bg7 {[%emt 0:00:05]} 4. Nc3 {[%emt 0:00:04]} Nc6 {[%emt 0:00:14]} 5. b3 {[%emt 0:00:07]} e5 {[%emt 0:01:18]} 6. Bb2 {[%emt 0:00:23]} Nge7 {[%emt 0:01:09]} 7. e3 {[%emt 0:00:40]} d6 {[%emt 0:03:32]} 8. d3 {[%emt 0:00:33] The position is equal.} Be6 {[%emt 0:07:21]} 9. Nd5 {[%emt 0:00:14]} Bxd5 {[%emt 0:01:03]} 10. cxd5 {[%emt 0:00:06]} Qa5+ $1 {[%emt 0:00:04]} 11. Qd2 {[%emt 0:00:37]} Nb4 {[%emt 0:00:57]} 12. Bc3 $1 {[%emt 0:00:06] [#] And now a3 would win.} Qb5 {[%emt 0:00:10]} 13. Bxb4 {[%emt 0:00:10]} cxb4 {[%emt 0:01:25]} 14. e4 {[%emt 0:00:08]} O-O {[%emt 0:05:48]} 15. Ne2 {[%emt 0:04:48][%cal Bg1e2,Be2f4,Bf4e6][%mdl 32]} f5 {[%emt 0:08:56]} 16. O-O {[%emt 0:05:00]} Rac8 {[%emt 0:02:38]} 17. Rac1 {[%emt 0:00:53]} a5 {[%emt 0:01:10]} 18. f4 {[%emt 0:06:16]} (18. Qg5 {simplifies} Qd7 19. Qe3 Qd8 20. Rxc8 Nxc8 21. exf5 gxf5 22. d4) 18... exf4 {[%emt 0:10:43]} 19. Nxf4 {[%emt 0:01:32] aiming for Ne6.} Bc3 {[%emt 0:01:23] White stays focused until the end.} (19... Rxc1 $11 20. Rxc1 Qb6+ 21. Kh1 Bh6) 20. Qe2 {[%emt 0:01:32]} fxe4 {[%emt 0:21:30]} 21. Qxe4 {[%emt 0:00:54]} Rce8 {[%emt 0:14:05]} 22. Ne6 {[%emt 0:02:00]} Nf5 $2 {[%emt 0:00:30]} (22... Rxf1+ {might work better.} 23. Rxf1 Nf5) 23. g4 $18 {[%emt 0:01:33][%cal Bg3g4,Bg4g5][%mdl 32]} Qb6+ {[%emt 0:06:12]} 24. Kh1 {[%emt 0:00:23]} Ne3 {[%emt 0:00:02]} 25. Rxf8+ {[%emt 0:00:46]} Rxf8 {[%emt 0:00:01]} 26. Nxf8 {[%emt 0:00:13]} Kxf8 {[%emt 0:00:04]} 27. g5 {[%emt 0:03:56]} Qc5 $2 {[%emt 0:00:32] [#]} (27... Qd4 28. Qxd4 Bxd4 29. Rc8+ Kg7 30. Rc7+ Kh8 31. Rxb7 Bc5) 28. d4 {[%emt 0:01:22]} Qxd4 {[%emt 0:00:35]} 29. Qxd4 {[%emt 0:00:03]} Bxd4 {[%emt 0:00:09][%mdl 4096] Endgame. KRB-KBN} 30. Rc8+ {[%emt 0:00:02]} Kg7 {[%emt 0:00:10]} 31. Rc7+ {[%emt 0:00:07]} Kg8 {[%emt 0:00:07]} 32. Rxb7 {[%emt 0:00:14]} Nd1 {[%emt 0:00:35]} 33. Rb8+ {[%emt 0:04:35]} Kf7 $2 {[%emt 0:01:54]} (33... Kg7 {keeps fighting.} 34. Rb7+ Kh8) 34. Bh3 {[%emt 0:04:13] White is clearly winning.} Nc3 {[%emt 0:01:35]} 35. Be6+ {[%emt 0:00:07]} Ke7 {[%emt 0:00:06]} 36. Rb7+ {[%emt 0:00:09]} Kf8 {[%emt 0:00:47]} 37. Rf7+ {[%emt 0:00:06]} Ke8 {[%emt 0:00:05]} 38. Rxh7 {[%emt 0:00:05]} Nxa2 {[%emt 0:00:12]} 39. Bf7+ {[%emt 0:00:13]} Kf8 {[%emt 0:00:15]} 40. Bxg6 {[%emt 0:00:00]} Nc3 {[%emt 0:00:00]} 41. Rf7+ {[%emt 0:00:23]} Kg8 {[%emt 0:02:21]} 42. Rb7 {[%emt 0:00:13]} Kf8 {[%emt 0:00:24]} 43. h4 {[%emt 0:02:46] Black must now prevent h5.} Be3 {[%emt 0:03:35]} 44. Rf7+ {[%emt 0:03:59]} Kg8 {[%emt 0:00:07]} 45. Rd7 {[%emt 0:01:41]} Bf4 {[%emt 0:01:22]} 46. Bf5 {[%emt 0:00:38] Weighted Error Value: White=0.33/Black=0.63.  Mistake:       	White=1     	Black=4      Inaccurate:     	White=1     	Black=4      OK:         	White=15    	Black=4      Best:        	White=3     	Black=2      Strong:       	White=1     	Black=1} 1-0